bitfinex-derivatives/quotes_SOLF0:USTF0_20250529
["timestamp","ask_amount","ask_price","bid_price","bid_amount"]
[1748480605376,0.03694699,173.33,173.29,5.80545644]
[1748480605677,0.03694699,173.33,173.29,0.03655644]
[1748480605878,0.03694699,173.33,173.3,5.7684]
[1748480606282,6.71549016,173.32,173.29,0.03655644]
[1748480606477,33.15694699,173.33,173.29,0.03655644]
[1748480606673,0.03694699,173.33,173.29,0.03655644]
[1748480606984,33.12,173.37,173.33,5.7675]
[1748480607174,33.12,173.37,173.3,1.9508]
[1748480607475,33.12,173.37,173.31,1.9384]
[1748480607783,5.80430441,173.36,173.32,5.80775785]
[1748480607985,0.03740441,173.36,173.32,0.03985785]
[1748480608386,5.7676,173.33,173.32,0.03985785]
[1748480608585,0.03740441,173.36,173.32,0.03985785]
[1748480608780,5.7672,173.35,173.32,0.03985785]
[1748480608980,0.03740441,173.36,173.32,0.03985785]
[1748480609386,5.767,173.35,173.32,0.03985785]
[1748480610082,5.7674,173.34,173.32,0.03985785]
[1748480611483,12.48249016,173.35,173.32,0.03985785]
[1748480611680,0.03740441,173.36,173.32,0.03985785]
[1748480612078,5.7676,173.34,173.32,0.03985785]
[1748480612880,5.7676,173.33,173.32,0.03985785]
[1748480613076,6.71549016,173.35,173.32,0.03985785]
[1748480613481,5.7676,173.33,173.32,0.03985785]
[1748480613985,6.71549016,173.35,173.27,1.9532]
[1748480613986,5.7688,173.3,173.27,1.9532]
[1748480614186,6.71549016,173.35,173.27,1.9532]
[1748480614984,0.04161854,173.33,173.29,0.03852201]
[1748480616088,5.80941854,173.33,173.29,0.03852201]
[1748480616589,5.768,173.32,173.29,0.03852201]
[1748480616990,0.04161854,173.33,173.29,0.03852201]
[1748480617783,5.768,173.32,173.29,0.03852201]
[1748480617985,0.04161854,173.33,173.29,0.03852201]
[1748480618389,5.7683,173.32,173.29,0.03852201]
[1748480619584,0.04161854,173.33,173.29,5.80752201]
[1748480619585,5.80931854,173.33,173.29,5.80752201]
[1748480619993,5.7683,173.31,173.29,0.03852201]
[1748480620193,0.04161854,173.33,173.29,0.03852201]
[1748480620987,33.12,173.32,173.21,33.12]
[1748480621192,33.12,173.32,173.21,35.0554]
[1748480621193,5.7693,173.28,173.21,35.0554]
[1748480621785,5.7693,173.28,173.23,5.7707]
[1748480621991,0.03883213,173.27,173.24,0.0372737]
[1748480622487,0.03883213,173.27,173.25,5.77]
[1748480622684,0.03883213,173.27,173.24,0.0372737]
[1748480623090,0.03883213,173.27,173.24,5.8076737]
[1748480624295,5.80853213,173.27,173.24,0.0372737]
[1748480624494,0.03883213,173.27,173.24,0.0372737]
[1748480625593,0.03883213,173.27,173.24,5.8076737]
[1748480625793,5.80853213,173.27,173.24,0.0372737]
[1748480626593,5.80853213,173.27,173.24,5.8078737]
[1748480626789,5.80853213,173.27,173.24,0.0372737]
[1748480627303,0.03883213,173.27,173.24,0.0372737]
[1748480627995,0.03883213,173.27,173.24,5.8078737]
[1748480628197,0.03883213,173.27,173.24,0.0372737]
[1748480629297,33.12,173.32,173.24,0.0372737]
[1748480629697,5.7684,173.31,173.28,5.7691]
[1748480630196,5.80642083,173.31,173.28,5.81284373]
[1748480631102,0.03802083,173.31,173.29,5.7689]
[1748480631799,5.80632083,173.31,173.28,5.81294373]
[1748480633001,5.769,173.29,173.28,0.04374373]
[1748480633391,6.75351099,173.31,173.28,0.04374373]
[1748480634102,12.52211099,173.31,173.28,0.04374373]
[1748480634303,6.75351099,173.31,173.28,0.04374373]
[1748480636804,5.7686,173.3,173.28,0.04374373]
[1748480638205,6.75351099,173.31,173.28,0.04374373]
[1748480638206,5.769,173.29,173.28,0.04374373]
[1748480639102,0.03802083,173.31,173.28,0.04374373]
[1748480641104,0.03802083,173.31,173.28,5.81304373]
[1748480641807,0.03802083,173.31,173.28,0.04374373]
[1748480642805,0.03802083,173.31,173.3,5.7686]
[1748480644405,0.03802083,173.31,173.29,5.7688]
[1748480644710,0.03802083,173.31,173.28,0.04374373]
[1748480644905,0.03802083,173.31,173.3,5.7686]
[1748480645112,40.81549016,173.36,173.28,0.04374373]
[1748480645300,5.7674,173.34,173.28,0.04374373]
[1748480645505,5.7674,173.34,173.31,5.7683]
[1748480645999,5.7681,173.32,173.29,5.7688]
[1748480646206,5.7681,173.32,173.28,0.04374373]
[1748480646805,5.7681,173.32,173.28,5.81284373]
[1748480647108,5.7683,173.31,173.28,0.04374373]
[1748480647406,6.75624067,173.33,173.28,0.04374373]
[1748480648615,0.04075051,173.33,173.28,0.04374373]
[1748480649209,6.75624067,173.33,173.28,0.04374373]
[1748480650810,6.75624067,173.33,173.25,5.7701]
[1748480651000,6.75624067,173.33,173.21,1.8716]
[1748480651001,6.74481711,173.29,173.08,26.6916246]
[1748480651203,6.74481711,173.29,172.98,18.33441105]
[1748480651204,5.7766,173.07,172.88,10.03325692]
[1748480651403,17.3,173.25,172.89,17.35005208]
[1748480651613,6.74481711,172.98,172.92,17.35005208]
[1748480651907,40.3573492,172.97,172.88,10.03325692]
[1748480652107,40.3573492,172.97,172.73,40.32]
[1748480652312,6.74481711,172.88,172.73,40.32]
[1748480652504,6.74481711,172.86,172.69,40.32]
[1748480652711,6.74481711,172.83,172.69,40.32]
[1748480652912,47.06481711,172.83,172.69,40.32]
[1748480653209,0.03940776,172.78,172.74,0.04220018]
[1748480653610,2.97387282,172.77,172.74,0.04220018]
[1748480653812,47.12422487,172.78,172.74,0.04220018]
[1748480654017,40.37940776,172.78,172.68,4.0449]
[1748480654319,3.08376079,172.77,172.7,5.7887]
[1748480654614,3.0833506,172.76,172.68,4.0449]
[1748480654810,498.42,172.89,172.68,4.0449]
[1748480655010,10.05146157,172.83,172.77,0.0425315]
[1748480655207,40.34,172.82,172.68,4.0449]
[1748480655611,0.04113561,172.77,172.73,0.03839341]
[1748480656007,50.39146157,172.82,172.73,0.03839341]
[1748480656207,40.34,172.82,172.73,0.03839341]
[1748480656719,498.42,172.89,172.73,0.03839341]
[1748480656911,498.42,172.89,172.76,5.7865]
[1748480657217,41.98,172.88,172.72,41.98]
[1748480657417,41.98,172.88,172.76,5.7865]
[1748480657614,41.98,172.87,172.72,41.98]
[1748480658014,0.04129803,172.81,172.79,5.7856]
[1748480658212,0.03691083,172.82,172.78,0.03914076]
[1748480658416,41.98,172.87,172.78,0.03914076]
[1748480659414,0.04043484,172.84,172.78,0.03914076]
[1748480659616,0.04043484,172.84,172.79,5.7854]
[1748480660115,0.04043484,172.84,172.78,0.03914076]
[1748480660722,0.04043484,172.84,172.83,5.7843]
[1748480660918,41.98,172.87,172.82,0.03649454]
[1748480661222,41.98,172.87,172.73,2.051]
[1748480661619,52.02123115,172.87,172.73,2.051]
[1748480661819,52.02123115,172.87,172.85,5.7833]
[1748480662012,52.02123115,172.87,172.73,2.051]
[1748480662217,9.555e-05,172.82,172.78,0.0369268]
[1748480663121,9.555e-05,172.82,172.81,5.7849]
[1748480665930,42.0,172.92,172.91,5.7816]
[1748480668329,0.04426151,172.93,172.92,5.7813]
[1748480668525,42.0,172.97,172.9,0.04393286]
[1748480668726,42.0,173.05,173.03,5.7775]
[1748480669030,43.48,173.05,172.89,43.48]
[1748480669428,43.48,173.05,172.85,11.5669]
[1748480669429,0.04109574,172.99,172.95,0.04293225]
[1748480669829,43.52109574,172.99,172.95,0.04293225]
[1748480670329,43.52109574,172.99,172.98,5.7793]
[1748480670532,43.52109574,172.99,172.95,0.04293225]
[1748480671631,43.52109574,172.99,172.83,43.48]
[1748480671927,43.48,172.99,172.83,43.48]
[1748480672126,53.51942426,172.99,172.87,5.7827]
[1748480672323,53.51942426,172.99,172.83,43.48]
[1748480672519,0.04053408,172.93,172.83,43.48]
[1748480672831,0.04053408,172.93,172.92,5.7813]
[1748480676635,43.48,172.99,172.97,5.7795]
[1748480677034,43.48,172.99,172.98,5.7793]
[1748480677235,43.48,172.99,172.84,1.8803]
[1748480677537,0.04430843,172.93,172.9,0.04428074]
[1748480677930,8.43e-06,172.93,172.92,5.7813]
[1748480688534,3.01358349,173.01,173.0,5.7786]
[1748480689442,3.01551293,173.01,172.93,1.9906]
[1748480689645,0.04265393,172.99,172.95,0.03759645]
[1748480690033,0.04265393,172.99,172.98,5.7793]
[1748480691245,3.06708921,172.99,172.98,5.7793]
[1748480691647,0.04265393,172.99,172.98,5.7793]
[1748480692340,3.06701671,172.99,172.98,5.7793]
[1748480692549,0.04265393,172.99,172.98,5.7793]
[1748480692741,6.10949257,172.99,172.98,5.7793]
[1748480692940,3.07607325,172.99,172.98,5.7793]
[1748480693342,6.10942818,172.99,172.98,5.7793]
[1748480693643,6.10937108,172.99,172.98,5.7793]
[1748480693843,3.07607325,172.99,172.98,5.7793]
[1748480694447,7.325e-05,172.99,172.98,5.7793]
[1748480706767,5.7764,173.07,172.95,0.03759645]
[1748480706768,506.32429618,173.1,172.96,11.5596]
[1748480706959,40.58,173.08,172.97,6.76429618]
[1748480707464,40.58,173.08,173.07,5.7763]
[1748480708264,47.34429618,173.08,172.94,49.31069618]
[1748480708766,53.12049618,173.08,173.04,5.7771]
[1748480709066,47.34429618,173.08,172.94,49.31069618]
[1748480709269,0.04091894,173.03,172.99,0.04011431]
[1748480710568,0.04091894,173.03,173.02,5.778]
[1748480713370,1.894e-05,173.03,173.02,5.778]
[1748480727577,40.58,173.11,173.02,5.778]
[1748480727578,40.58,173.11,173.1,5.7753]
[1748480728181,43.25551011,173.11,173.1,5.7753]
[1748480728777,40.58,173.11,173.1,5.7753]
[1748480728976,43.25465585,173.11,173.1,5.7753]
[1748480729174,43.25471212,173.11,173.1,5.7753]
[1748480729678,40.58,173.11,173.1,5.7753]
[1748480732282,0.04081885,173.12,173.11,5.775]
[1748480733786,2.71856646,173.12,173.11,5.775]
[1748480735180,2.72224574,173.12,173.11,5.775]
[1748480735981,2.72242306,173.12,173.11,5.775]
[1748480736482,0.04081885,173.12,173.11,5.775]
[1748480736675,2.72238713,173.12,173.11,5.775]
[1748480736871,2.72229444,173.12,173.11,5.775]
[1748480737076,0.04081885,173.12,173.11,5.775]
[1748480738076,2.72231723,173.12,173.11,5.775]
[1748480739280,0.04081885,173.12,173.11,5.775]
[1748480739476,2.72272119,173.12,173.11,5.775]
[1748480739677,2.72264926,173.12,173.11,5.775]
[1748480739876,0.04081885,173.12,173.11,5.775]
[1748480740075,2.72264926,173.12,173.11,5.775]
[1748480741184,0.04081885,173.12,173.11,5.775]
[1748480741385,2.7268477,173.12,173.11,5.775]
[1748480741589,2.72676214,173.12,173.11,5.775]
[1748480743094,2.72547717,173.12,173.11,5.775]
[1748480743392,0.04081885,173.12,173.11,5.775]
[1748480744287,2.7251123,173.12,173.11,5.775]
[1748480744488,0.04081885,173.12,173.11,5.775]
[1748480748792,1.885e-05,173.12,173.11,5.775]
[1748480749595,6.7568367,173.25,173.11,5.775]
[1748480749596,2.68174417,173.17,173.11,43.435]
[1748480749890,37.66,173.24,173.12,10.7377367]
[1748480750093,2.68108443,173.23,173.12,12.6270367]
[1748480750288,2.68108443,173.22,173.12,12.6270367]
[1748480750488,2.68108443,173.21,173.12,12.6270367]
[1748480750790,37.66,173.24,173.23,5.771]
[1748480750982,40.3386388,173.24,173.23,5.771]
[1748480751691,40.33551129,173.24,173.23,5.771]
[1748480751992,40.32963247,173.24,173.23,5.771]
[1748480752794,37.66,173.24,173.23,5.771]
[1748480753197,498.9,173.27,173.26,5.77]
[1748480753392,501.56708513,173.27,173.26,5.77]
[1748480753586,37.66,173.28,173.26,5.77]
[1748480753791,37.66,173.28,173.27,5.7696]
[1748480754792,505.5768367,173.35,173.32,5.7679]
[1748480754999,40.32065362,173.34,173.32,5.80484046]
[1748480755200,37.66,173.34,173.32,5.80484046]
[1748480755801,2.66039245,173.33,173.32,5.80484046]
[1748480756001,37.66,173.34,173.32,5.80484046]
[1748480756199,2.66036312,173.33,173.32,5.80484046]
[1748480756403,37.66,173.34,173.32,5.80484046]
[1748480756598,2.66034941,173.33,173.32,5.80484046]
[1748480756904,37.66,173.34,173.33,5.7676]
[1748480757102,40.31431612,173.34,173.33,5.7676]
[1748480757501,40.31533165,173.34,173.33,5.7676]
[1748480759411,40.31459698,173.34,173.33,5.7676]
[1748480759706,40.3124573,173.34,173.33,5.7676]
[1748480759902,40.31243374,173.34,173.33,5.7676]
[1748480760209,37.66,173.34,173.33,5.7676]
[1748480760906,37.66,173.34,173.32,0.03694046]
[1748480760907,37.64,173.38,173.32,0.03694046]
[1748480762603,37.64,173.38,173.37,5.7663]
[1748480763706,37.64,173.42,173.36,0.03648556]
[1748480764102,37.64,173.42,173.41,5.7649]
[1748480764406,37.62,173.46,173.4,0.0432416]
[1748480764708,37.62,173.46,173.41,0.04225629]
[1748480765306,37.62,173.46,173.42,5.7646]
[1748480765705,37.62,173.46,173.41,0.04225629]
[1748480766010,44.3768367,173.46,173.41,0.04225629]
[1748480766308,5.7643,173.43,173.41,0.04225629]
[1748480766507,44.3768367,173.46,173.41,0.04225629]
[1748480766908,2.61446849,173.45,173.32,2.0482]
[1748480767303,6.7568367,173.43,173.31,41.6151]
[1748480767498,5.7663,173.37,173.32,5.7679]
[1748480767902,0.03697373,173.36,173.33,0.03827839]
[1748480769413,5.80377373,173.36,173.33,0.03827839]
[1748480770310,0.03697373,173.36,173.33,0.03827839]
[1748480770914,5.80387373,173.36,173.33,0.03827839]
[1748480771414,5.767,173.35,173.33,0.03827839]
[1748480771619,0.03697373,173.36,173.33,0.03827839]
[1748480772714,5.7673,173.34,173.33,0.03827839]
[1748480773722,0.03697373,173.36,173.33,0.03827839]
[1748480774923,5.80387373,173.36,173.33,0.03827839]
[1748480775219,0.03697373,173.36,173.33,0.03827839]
[1748480776020,6.7568367,173.35,173.24,3.8843]
[1748480776318,36.22,173.34,173.24,3.8843]
[1748480776719,5.7686,173.31,173.24,3.8843]
[1748480776917,0.04268799,173.29,173.26,0.03897413]
[1748480777227,0.04268799,173.29,173.28,5.7693]
[1748480777423,0.04268799,173.29,173.26,0.03897413]
[1748480779026,0.04268799,173.29,173.28,5.7693]
[1748480781525,0.04268799,173.29,173.26,0.03897413]
[1748480782123,0.04268799,173.29,173.28,5.7693]
[1748480782520,36.22,173.34,173.26,0.03897413]
[1748480783326,41.9873,173.34,173.3,5.7684]
[1748480783528,42.02658688,173.34,173.3,5.81052985]
[1748480783829,36.25928688,173.34,173.33,5.7676]
[1748480784130,36.25928688,173.34,173.3,0.04212985]
[1748480785024,5.7677,173.33,173.3,0.04212985]
[1748480786730,5.768,173.32,173.3,0.04212985]
[1748480786924,36.25928688,173.34,173.3,0.04212985]
[1748480787231,5.7679,173.33,173.3,0.04212985]
[1748480787424,36.25928688,173.34,173.3,0.04212985]
[1748480787829,5.7681,173.32,173.3,0.04212985]
[1748480788937,5.7683,173.31,173.3,0.04212985]
[1748480790128,2.62650055,173.31,173.24,3.8843]
[1748480790332,6.7568367,173.32,173.24,3.8843]
[1748480790627,5.7688,173.3,173.27,5.7695]
[1748480790828,36.24,173.29,173.27,5.7695]
[1748480791029,36.24,173.29,173.26,0.03909871]
[1748480791224,5.7695,173.28,173.26,0.03909871]
[1748480791434,42.9968367,173.29,173.26,0.03909871]
[1748480791827,5.7696,173.27,173.26,0.03909871]
[1748480792733,5.7694,173.28,173.26,0.03909871]
[1748480792929,2.6318326,173.27,173.26,0.03909871]
[1748480793134,42.9968367,173.29,173.26,0.03909871]
[1748480793527,2.63212008,173.28,173.26,0.03909871]
[1748480793934,36.24,173.29,173.26,0.03909871]
[1748480794432,6.7568367,173.28,173.26,0.03909871]
[1748480794632,2.6356851,173.27,173.26,0.03909871]
[1748480794829,2.63569791,173.27,173.26,0.03909871]
[1748480795035,2.63560274,173.27,173.26,0.03909871]
[1748480795229,2.63539486,173.27,173.26,5.80899871]
[1748480795538,2.63734177,173.27,173.26,0.03909871]
[1748480795835,36.24,173.29,173.28,5.7693]
[1748480797133,38.87811066,173.29,173.28,5.7693]
[1748480797337,36.24,173.29,173.28,5.7693]
[1748480797539,38.87975827,173.29,173.28,5.7693]
[1748480797739,38.87978505,173.29,173.28,5.7693]
[1748480797939,36.24,173.29,173.28,5.7693]
[1748480798341,38.87986967,173.29,173.28,5.7693]
[1748480798638,36.24,173.29,173.28,5.7693]
[1748480798839,38.88042539,173.29,173.28,5.7693]
[1748480799043,38.88046072,173.29,173.28,5.7693]
[1748480799234,36.24,173.29,173.28,5.7693]
[1748480799437,38.88054314,173.29,173.28,5.7693]
[1748480799635,36.24,173.29,173.28,5.7693]
[1748480800130,38.88098245,173.29,173.28,5.7693]
[1748480800335,38.88094712,173.29,173.28,5.7693]
[1748480800530,38.88091179,173.29,173.28,5.7693]
[1748480800841,36.24,173.29,173.28,5.7693]
[1748480801036,38.88094712,173.29,173.28,5.7693]
[1748480801339,38.8809589,173.29,173.28,5.7693]
[1748480801541,36.24,173.29,173.27,5.7695]
[1748480801754,36.24,173.29,173.26,0.03909871]
[1748480801939,36.24,173.29,173.26,5.80879871]
[1748480802241,36.24,173.29,173.26,0.03909871]
[1748480802737,2.64071261,173.28,173.26,0.03909871]
[1748480803042,6.7568367,173.28,173.26,0.03909871]
[1748480803233,2.64089196,173.27,173.26,0.03909871]
[1748480803436,12.5263367,173.28,173.26,0.03909871]
[1748480803636,6.7568367,173.28,173.26,0.03909871]
[1748480803942,12.5261367,173.28,173.26,0.03909871]
[1748480804135,2.64053098,173.27,173.26,0.03909871]
[1748480804334,6.7568367,173.28,173.26,0.03909871]
[1748480805036,2.64015065,173.27,173.26,0.03909871]
[1748480805241,2.64006935,173.27,173.26,0.03909871]
[1748480805431,6.7568367,173.28,173.26,0.03909871]
[1748480805637,2.64022984,173.27,173.2,1.9357]
[1748480805838,6.7568367,173.28,173.23,5.7709]
[1748480806034,2.64030265,173.27,173.2,1.9357]
[1748480806243,6.7568367,173.28,173.22,5.7711]
[1748480806439,2.64034682,173.27,173.22,5.7711]
[1748480806647,0.04143775,173.26,173.23,0.04281]
[1748480806838,6.7568367,173.25,173.23,0.04281]
[1748480807038,34.88,173.24,173.15,1.8983]
[1748480807644,8.41168573,173.23,173.2,5.7717]
[1748480807948,5.771,173.23,173.2,5.7717]
[1748480808145,5.81044281,173.23,173.2,5.81280662]
[1748480808941,0.03944281,173.23,173.2,0.04110662]
[1748480809747,5.81044281,173.23,173.2,0.04110662]
[1748480810246,5.81044281,173.23,173.2,5.81290662]
[1748480810849,5.7713,173.22,173.2,0.04110662]
[1748480811350,5.81044281,173.23,173.2,5.81290662]
[1748480811542,2.64226375,173.22,173.2,0.04110662]
[1748480811743,0.03944281,173.23,173.2,0.04110662]
[1748480811952,5.7716,173.21,173.2,0.04110662]
[1748480812144,6.7568367,173.22,173.15,1.8983]
[1748480812448,5.772,173.2,173.17,5.7727]
[1748480812650,37.52357685,173.19,173.15,1.8983]
[1748480812849,34.88,173.19,173.15,1.8983]
[1748480813047,34.92104262,173.19,173.15,1.9385505]
[1748480813751,34.92104262,173.19,173.18,5.7726]
[1748480814249,0.04104262,173.19,173.18,5.7726]
[1748480816154,34.88,173.22,173.21,5.7716]
[1748480816748,37.52549611,173.22,173.21,5.7716]
[1748480816944,34.88,173.22,173.21,5.7716]
[1748480817345,37.52558614,173.22,173.2,5.80986418]
[1748480817546,34.88,173.22,173.2,0.03796418]
[1748480817752,2.64573979,173.21,173.2,0.03796418]
[1748480818047,2.64578241,173.21,173.2,0.03796418]
[1748480818351,2.64578241,173.21,173.16,5.7731]
[1748480818753,5.7722,173.2,173.16,5.7731]
[1748480819154,5.7722,173.2,173.09,36.9385]
[1748480819155,6.7568367,173.2,173.09,36.9385]
[1748480819350,0.04390859,173.16,173.13,0.03678146]
[1748480819753,0.04390859,173.16,173.15,5.7736]
[1748480822556,5.81740859,173.16,173.13,0.03678146]
[1748480822754,0.04390859,173.16,173.13,0.03678146]
[1748480822960,5.29136749,173.15,173.13,0.03678146]
[1748480823158,2.64567948,173.15,173.13,0.03678146]
[1748480823656,2.64567948,173.15,173.14,5.7739]
[1748480826558,2.64567948,173.15,173.13,5.81108146]
[1748480826759,2.64567948,173.15,173.13,0.03678146]
[1748480827456,6.7568367,173.14,173.09,2.0585]
[1748480827663,5.7745,173.13,173.09,2.0585]
[1748480827854,33.78,173.12,173.03,5.9457]
[1748480828255,2.66268616,173.11,173.03,5.9457]
[1748480828455,0.04273296,173.09,173.05,0.03955422]
[1748480828658,2.66268616,173.08,173.05,0.03955422]
[1748480828864,0.04273296,173.09,173.08,5.7759]
[1748480829159,2.7053419,173.09,173.08,5.7759]
[1748480829364,2.70534515,173.09,173.08,5.7759]
[1748480830263,0.04273296,173.09,173.08,5.7759]
[1748480832859,0.04273296,173.09,173.05,0.03955422]
[1748480833365,15.17170648,173.08,173.05,0.03955422]
[1748480833559,36.41856195,173.07,173.05,0.03955422]
[1748480833861,33.78,173.07,173.05,0.03955422]
[1748480834159,33.78,173.07,173.06,5.7766]
[1748480834968,24.4224,173.07,173.06,5.7766]
[1748480835155,15.6483,173.07,173.06,5.7766]
[1748480835359,0.04273296,173.09,173.08,5.7759]
[1748480835863,0.04273296,173.09,173.07,5.7762]
[1748480836063,0.04273296,173.09,173.05,0.03955422]
[1748480836962,2.63972599,173.08,173.05,0.03955422]
[1748480837165,0.04273296,173.09,173.05,0.03955422]
[1748480837555,2.63972995,173.08,173.05,0.03955422]
[1748480837757,0.04273296,173.09,173.05,0.03955422]
[1748480837962,2.63974853,173.08,173.05,0.03955422]
[1748480838267,0.04273296,173.09,173.08,5.7759]
[1748480838468,2.68233497,173.09,173.08,5.7759]
[1748480838768,2.68233497,173.09,173.05,0.03955422]
[1748480838966,2.63960201,173.08,173.06,5.7764]
[1748480839172,0.04273296,173.09,173.06,5.7764]
[1748480839362,2.64123289,173.08,173.06,5.7764]
[1748480839558,0.04273296,173.09,173.07,5.7763]
[1748480839765,2.64241118,173.08,173.07,5.7763]
[1748480840964,2.64241118,173.08,173.06,5.7765]
[1748480841165,0.04273296,173.09,173.06,5.7765]
[1748480841359,2.64338661,173.08,173.06,5.7765]
[1748480841570,0.04273296,173.09,173.06,5.7765]
[1748480841770,2.64345744,173.08,173.06,5.7765]
[1748480842068,0.04273296,173.09,173.05,0.03955422]
[1748480842269,6.7568367,173.07,172.97,3.9618]
[1748480842566,5.7778,173.03,172.99,5.7787]
[1748480842764,2.64359274,173.02,172.93,33.78]
[1748480842965,33.78,173.01,172.93,33.78]
[1748480843270,33.78,173.01,172.99,5.7789]
[1748480844173,33.78,173.01,172.98,5.7791]
[1748480844574,33.78,173.01,173.0,5.7786]
[1748480845969,33.78,173.01,172.99,5.8161513]
[1748480846176,122.49850327,173.0,172.86,5.9352]
[1748480846366,6.7568367,172.95,172.86,5.9352]
[1748480846567,33.8,172.94,172.89,5.782]
[1748480846767,33.8,172.94,172.86,5.9352]
[1748480847276,0.03834806,172.92,172.89,5.782]
[1748480847476,0.03834806,172.92,172.88,0.04068759]
[1748480847772,0.03834806,172.92,172.88,5.82308759]
[1748480848068,0.03834806,172.92,172.88,0.04068759]
[1748480848670,0.03834806,172.92,172.89,5.782]
[1748480848872,0.03834806,172.92,172.88,0.04068759]
[1748480849471,0.03834806,172.92,172.91,5.7816]
[1748480850374,33.8,172.94,172.93,5.7809]
[1748480850771,33.8,172.98,172.86,5.9352]
[1748480851378,0.04249482,172.94,172.9,0.04027382]
[1748480851579,33.8,172.98,172.9,33.84027382]
[1748480851985,33.8,172.98,172.97,5.7796]
[1748480852178,33.8,172.98,172.9,33.84027382]
[1748480852179,33.8,173.02,172.9,33.8]
[1748480852574,0.0367528,172.98,172.94,0.04419973]
[1748480853487,0.0367528,172.98,172.97,5.7796]
[1748480855084,5.28e-05,172.98,172.97,5.7796]
[1748480870193,5.28e-05,172.98,172.96,5.7798]
[1748480870802,5.28e-05,172.98,172.97,5.7796]
[1748480878209,5.28e-05,172.98,172.94,0.04419973]
[1748480879406,5.28e-05,172.98,172.97,5.7796]
[1748480885410,7.6832,173.1,172.96,6.76394427]
[1748480885411,33.66,173.1,172.96,6.76394427]
[1748480885611,2.64601171,173.09,172.99,6.76394427]
[1748480885910,33.66,173.1,173.0,39.5664]
[1748480886302,33.66,173.1,173.03,0.03718633]
[1748480886508,0.04218207,173.07,173.03,0.03718633]
[1748480886810,0.04218207,173.07,173.06,5.7766]
[1748480889315,0.04218207,173.07,173.03,0.03718633]
[1748480889703,0.04218207,173.07,173.06,5.7766]
[1748480893120,0.04218207,173.07,173.05,5.7769]
[1748480893322,0.04218207,173.07,173.03,0.03718633]
[1748480893820,0.04218207,173.07,173.06,5.7766]
[1748480894324,0.04218207,173.07,173.03,0.03718633]
[1748480895821,0.04218207,173.07,173.03,5.81458633]
[1748480896716,0.04218207,173.07,173.04,5.7772]
[1748480897219,0.04218207,173.07,173.03,0.03718633]
[1748480897421,0.04218207,173.07,173.06,5.7766]
[1748480908728,0.04218207,173.07,173.03,0.03718633]
[1748480909227,0.04218207,173.07,173.06,5.7766]
[1748480912530,0.04218207,173.07,173.03,0.03718633]
[1748480914534,0.04218207,173.07,173.05,5.7767]
[1748480914831,0.04218207,173.07,173.03,0.03718633]
[1748480915327,0.04218207,173.07,173.06,5.7766]
[1748480918129,0.04218207,173.07,173.03,0.03718633]
[1748480918331,0.04218207,173.07,173.05,5.7768]
[1748480918530,0.04218207,173.07,173.03,0.03718633]
[1748480918731,0.04218207,173.07,173.06,5.7766]
[1748480923330,2.69835866,173.07,173.06,5.7766]
[1748480923935,2.69880099,173.07,173.05,5.7768]
[1748480924133,0.04218207,173.07,173.05,5.7768]
[1748480925039,0.04218207,173.07,173.06,5.7766]
[1748480925334,2.69919419,173.07,173.06,5.7766]
[1748480925540,2.69920254,173.07,173.06,5.7766]
[1748480925738,2.69951883,173.07,173.06,5.7766]
[1748480925934,2.69951883,173.07,173.05,5.7768]
[1748480926136,0.04218207,173.07,173.03,0.03718633]
[1748480927142,0.04218207,173.07,173.05,5.7767]
[1748480927741,0.04218207,173.07,173.04,5.7772]
[1748480928442,2.65899899,173.06,173.04,5.7772]
[1748480928638,0.04218207,173.07,173.05,5.7769]
[1748480928838,2.65920268,173.06,173.05,5.7769]
[1748480929439,5.81848207,173.07,173.04,5.7771]
[1748480929636,2.65920594,173.06,173.03,0.03718633]
[1748480929838,0.04218207,173.07,173.03,0.03718633]
[1748480930039,2.65937478,173.06,173.05,5.7767]
[1748480930241,0.04218207,173.07,173.05,5.7767]
[1748480930437,2.66090768,173.06,173.05,5.7767]
[1748480931144,0.04218207,173.07,173.06,5.7766]
[1748480931336,2.70318074,173.07,173.06,5.7766]
[1748480931843,2.7032526,173.07,173.06,5.7766]
[1748480932042,2.70311543,173.07,173.06,5.7766]
[1748480933349,2.70305718,173.07,173.06,5.7766]